[Event "ITT 1st Parada Jamundi 2022"]
[Site "Jamundi Valle"]
[Date "2022.12.10"]
[Round "8.4"]
[White "Delgado Ramirez, Neuris"]
[Black "Cori Quispe, Kevin Joel"]
[Result "1/2-1/2"]
[ECO "B23"]
[WhiteElo "2572"]
[BlackElo "2469"]
[Annotator "TA"]
[PlyCount "63"]
[EventDate "2022.12.05"]
[EventType "swiss"]
[EventCountry "COL"]
[SourceTitle "playchess.com"]
[Source "ChessBase"]
[SourceQuality "1"]
[TimeControl "5400+30"]

{[%evp 9,63,-2,1,-71,-70,-68,-70,-57,-9,-42,-33,-50,-49,-47,-37,-36,-38,-29,-22,-33,-37,-51,-22,-21,0,-13,2,14,9,0,0,6,7,-25,39,39,39,37,47,23,24,-30,59,0,43,-29,0,0,0,0,43,0,0,0,-28,-42]} 1. e4 {[%emt 0:08:46]} c5 {[%emt 0:00:41]} 2. Nc3 {[%emt 0:00:29]} Nc6 {[%emt 0:00:19]} 3. Bb5 {[%emt 0:01:26]} Nd4 4. Bd3 {[%emt 0:03:28]} g6 5. Nf3 Bg7 {[#]} 6. Nd5 $146 {B23: Closed Sicilian: Lines without g3.} (6. O-O $11) ({Predecessor:} 6. Nxd4 cxd4 7. Ne2 d6 8. c3 dxc3 9. dxc3 Nf6 10. O-O O-O 11. h3 b6 12. Re1 {1-0 (45) Predke,A (2676)-Dubov,D (2690) Moscow 2019}) 6... e6 $17 7. Ne3 Ne7 8. c3 {Black is slightly better.} Ndc6 (8... Nxf3+ $15 9. Qxf3 b6) 9. h4 h6 10. Bc2 d5 11. d3 d4 12. cxd4 cxd4 13. Nf1 e5 14. h5 g5 15. N3d2 Be6 16. a3 Qd7 17. Bb3 Bg4 18. f3 Be6 19. Bxe6 Qxe6 {[%emt 0:12:59]} 20. b4 {[%emt 0:08:50]} O-O {[%emt 0:30:43]} 21. Qb3 {[%emt 0:19:06]} Qd7 {[%emt 0:10:27]} (21... Nd8 $11) 22. a4 $14 {[%emt 0:02:25]} Rac8 {[%emt 0:04:29]} 23. Nc4 {[%emt 0:00:45]} Nd8 {[%emt 0:42:22]} 24. Nh2 Ne6 25. Ng4 (25. O-O $142) 25... f6 (25... f5 $1 $11 26. Nf2 (26. Ngxe5 Qc7 $17) (26. Ncxe5 $2 Qd6 $17) 26... Kh7) 26. Ba3 (26. Kf2 $14) 26... Kh7 (26... f5 $5 {[%cal Rf5g4]} 27. Nf2 (27. Ngxe5 Qc7 $17) (27. Ncxe5 Bxe5 28. Nxe5 Qd6 $11) 27... Kh7 $11) 27. Kd2 (27. b5 $14) 27... Rc7 (27... f5 $5 {[%cal Rf5g4]} 28. Ngxe5 Bxe5 29. Nxe5 Qd6 $11) 28. Rac1 Rfc8 29. a5 Ng8 {[%emt 0:00:00]} 30. b5 {[%emt 0:17:50] [#] Black must now prevent b6. Active counter play!} Nc5 $1 {[%emt 0:00:00] Against b6} 31. Bxc5 {[%emt 0:01:12] Dancing on a razor blade.} Rxc5 {[%emt 0:04:00]} 32. Rb1 {[%emt 0:42:13] Weighted Error Value: White=0.20 (precise) /Black=0.19 (very precise)} 1/2-1/2

[Event "ITT 1st Parada Jamundi 2022"]
[Site "Jamundi Valle"]
[Date "2022.12.10"]
[Round "8.5"]
[White "Herrera, Juan Sebastian"]
[Black "Cruz, Cristhian"]
[Result "0-1"]
[ECO "D36"]
[WhiteElo "2297"]
[BlackElo "2552"]
[Annotator "TA"]
[PlyCount "50"]
[EventDate "2022.12.05"]
[EventType "swiss"]
[EventCountry "COL"]
[SourceTitle "playchess.com"]
[Source "ChessBase"]
[SourceQuality "1"]
[TimeControl "5400+30"]

{[%evp 22,50,11,6,16,0,0,0,0,0,5,0,0,0,2,12,12,12,12,0,29,3,14,10,23,0,0,-18,-38,-21,-27]} 1. d4 e6 {[%emt 0:09:24]} 2. c4 {[%emt 0:00:12]} Nf6 {[%emt 0:00:36]} 3. Nc3 {[%emt 0:00:09]} d5 {[%emt 0:00:31]} 4. cxd5 exd5 {[%emt 0:00:06]} 5. Bg5 {[%emt 0:00:22]} c6 {[%emt 0:00:31]} 6. Qc2 {[%emt 0:00:14]} h6 {[%emt 0:07:33]} 7. Bh4 {[%emt 0:00:49]} Be7 {[%emt 0:00:06]} 8. e3 {[%emt 0:00:23]} O-O {[%emt 0:00:32]} 9. Bd3 {[%emt 0:00:05]} Re8 {[%emt 0:00:30]} 10. Nge2 a5 {[%emt 0:00:30]} 11. O-O {[%emt 0:01:00]} Nbd7 {[%emt 0:04:42]} 12. f3 {[%emt 0:00:30]} b5 {[%emt 0:00:30] D36: Queen's Gambit Declined: Exchange Variation: Main line (5 Bg5 c6 6 Qc2).} 13. Kh1 {[%emt 0:00:30]} Ba6 {[%emt 0:00:30]} 14. Rad1 {[%emt 0:00:30] [#]} Qb8 $146 {[%emt 0:00:30]} ({Predecessor:} 14... Nf8 15. Bf2 Ne6 16. e4 dxe4 17. fxe4 Qc8 18. e5 Nd5 19. Bg1 b4 20. Ne4 a4 21. Bxa6 Qxa6 {1-0 (46) Nagy,G (2518)-Lodici,L (2483) Tornelo INT 2021}) 15. Bf2 {[%emt 0:00:30]} a4 {[%emt 0:00:30]} 16. Bg1 {[%emt 0:00:30]} Qb7 {[%emt 0:38:09]} 17. a3 {[%emt 0:31:02]} b4 {[%emt 0:14:12] [#] Against e4. And now ...Bxd3 would win.} 18. axb4 {[%emt 0:02:53]} Bxd3 {[%emt 0:00:30]} 19. Rxd3 {[%emt 0:00:30]} Qxb4 {[%emt 0:00:44]} 20. e4 {[%emt 1:00:21]} Nb6 {[%emt 0:01:37]} 21. Ra1 {[%emt 0:00:00]} (21. e5 $5 {[%cal Re5f6]}) 21... Reb8 {[%emt 0:02:18]} 22. e5 {[%emt 0:00:00]} Nh7 {[%emt 0:00:19]} 23. Na2 {[%emt 0:00:00]} Qa5 {[%emt 0:03:52]} 24. b3 {[%emt 0:00:00] Inhibits Nc4.} (24. Qxc6 $2 {is the wrong capture.} Rc8 25. Qb7 Ra7 $19) 24... axb3 {[%emt 0:00:36]} 25. Rxb3 {[%emt 0:00:00]} Nc4 {[%emt 0:00:07][%mdl 32768] A balanced but interesting game.   Weighted Error Value: White=0.08 (flawless) /Black=0.04 (flawless) . Loss on time!?} 0-1

[Event "ITT 1st Parada Jamundi 2022"]
[Site "Jamundi Valle"]
[Date "2022.12.10"]
[Round "8.6"]
[White "Zuluaga Mancilla, Cesar"]
[Black "Campos Gomez, Manuel"]
[Result "1/2-1/2"]
[ECO "E90"]
[WhiteElo "2230"]
[BlackElo "2322"]
[Annotator "TA"]
[PlyCount "116"]
[EventDate "2022.12.05"]
[EventType "swiss"]
[EventCountry "COL"]
[SourceTitle "playchess.com"]
[Source "ChessBase"]
[SourceQuality "1"]
[TimeControl "5400+30"]

{[%evp 13,116,30,45,45,54,0,0,-22,-21,-30,0,-17,-17,-25,0,-17,-8,-17,9,0,25,-12,-19,-19,0,0,0,-39,0,-13,-23,-20,-19,-68,0,-10,-6,-23,29,26,33,32,193,158,155,152,180,78,71,63,81,79,177,172,163,156,166,143,198,161,231,191,234,229,317,310,336,305,321,303,382,194,188,202,340,131,326,129,131,44,116,116,160,137,166,141,217,164,680,245,307,307,741,72,712,122,125,150,482,213,279,277,358,349,1032]} 1. d4 {[%emt 0:02:44]} Nf6 {[%emt 0:01:42]} 2. c4 {[%emt 0:00:40]} g6 {[%emt 0:00:36]} 3. Nc3 {[%emt 0:00:07]} Bg7 {[%emt 0:00:04]} 4. Nf3 {[%emt 0:00:39]} O-O {[%emt 0:00:10]} 5. e4 {[%emt 0:00:13]} d6 {[%emt 0:00:06]} 6. h3 {[%emt 0:00:06]} e5 {[%emt 0:00:04]} 7. d5 {[%emt 0:01:39]} Nh5 {[%emt 0:01:21]} 8. g3 {[%emt 0:00:37] E90: King's Indian: Classical: Early deviations and 6 h3.} f5 {[%emt 0:00:07]} 9. Bd3 {[%emt 0:01:20]} (9. exf5 $14 gxf5 10. Nh4) 9... Na6 $11 {[%emt 0:03:47]} 10. Qe2 {[%emt 0:02:43] The position is equal.} (10. Bg5 Qe8 $15) 10... Nf6 {[%emt 0:00:30] [#]} 11. Bg5 $146 {[%emt 0:00:30]} ({Predecessor:} 11. Be3 f4 12. gxf4 exf4 13. Bd4 Nd7 14. Bxg7 Kxg7 15. O-O-O Qe7 16. Rdg1 Ne5 17. a3 {1-0 (27) Rajcevic,S (2104)-Smolovic,M (2327) Belgrade 2014}) 11... h6 {[%emt 0:00:30]} 12. Bxf6 {[%emt 0:00:30]} Qxf6 {[%emt 0:00:30]} 13. Nd2 {[%emt 0:00:30]} h5 {[%emt 0:00:30]} 14. O-O-O {[%emt 0:00:30]} Bd7 {[%emt 0:00:30]} 15. Rdf1 {[%emt 0:13:41]} c6 {[%emt 0:29:08]} 16. a3 {[%emt 0:01:31]} Rab8 {[%emt 0:02:35]} 17. Kb1 {[%emt 0:00:33]} Nc7 {[%emt 0:01:44]} 18. f3 {[%emt 0:00:30]} cxd5 {[%emt 0:00:30]} (18... f4 $5 {[%cal Rf4g3]} 19. g4 h4 $11) 19. cxd5 {[%emt 0:00:30]} b5 {[%emt 0:00:30]} 20. Na2 {[%emt 0:05:16]} a5 {[%emt 0:08:22][%cal Oc7d5]} (20... Nxd5 {keeps more tension.} 21. exd5 e4 22. Nxe4 fxe4 23. fxe4 Qg5) 21. Nb3 {[%emt 0:08:15][%cal Bd2b3,Bb3a5,Ba5c6][%mdl 32]} b4 {[%emt 0:03:31]} 22. axb4 {[%emt 0:00:30]} axb4 {[%emt 0:00:30]} 23. Rc1 {[%emt 0:02:58]} (23. Nac1 $11) 23... Na8 {[%emt 0:06:06]} (23... Qd8 $15) 24. Na5 {[%emt 0:07:34]} Bh6 {[%emt 0:01:01]} 25. Nc6 {[%emt 0:00:30] [#]} Rb6 {[%emt 0:00:30]} (25... b3 $142 $1 26. Nc3 Bxc6 27. dxc6 Bxc1 28. Rxc1 Nc7) 26. Rc4 {[%emt 0:00:30]} b3 {[%emt 0:00:30]} 27. Nc3 {[%emt 0:00:30][%cal Of3f4]} Rc8 $2 {[%emt 0:00:30] Prevents f4.} (27... Kh8 $1 $14) 28. exf5 {[%emt 0:00:30]} gxf5 {[%emt 0:00:30]} 29. g4 $1 {[%emt 0:00:30] Rg1 is the strong threat. White is more active.} Kh8 {[%emt 0:00:30]} 30. Bxf5 {[%emt 0:12:01]} (30. gxf5 $18 {is more deadly.} Bxf5 31. Bxf5 Qxf5+ 32. Qe4 Qxe4+ 33. fxe4 (33. Nxe4 Ra6 $16)) 30... Bxf5+ $16 {[%emt 0:08:29]} 31. gxf5 {[%emt 0:00:08]} Qxf5+ {[%emt 0:00:44]} 32. Qe4 {[%emt 0:00:11]} Rf8 (32... Qxe4+ $16 33. fxe4 (33. Nxe4 Ra6 $16) 33... Re8) 33. Ne7 $1 $36 {[%emt 0:00:30][%mdl 2048] White is really pushing. Pair of Knights!} Qxe4+ 34. fxe4 {[%emt 0:00:30] Hoping for Ng6+.} Kh7 {Against Ng6} 35. Nf5 {[%emt 0:00:30]} Rg8 (35... Rf7 $16 36. Ra4 Nc7) 36. Rf1 {[%emt 0:00:30]} Bd2 (36... Rb7 $142 37. Nxd6 Rbg7) 37. Ne2 {[%emt 0:00:30]} Ra6 38. Rg1 {[%emt 0:00:30]} Rf8 39. Rg3 {[%emt 0:00:30]} Rb8 40. Rg7+ {[%emt 0:00:30]} Kh8 41. Nc1 {[%emt 0:00:30]} Rf8 {[%cal Of8f5]} 42. Rg3 {[%emt 0:00:30]} (42. Nxb3 Rxf5 43. exf5 (43. Nxd2 Kxg7 44. exf5 Kf6 $16) 43... Kxg7 $16) (42. Re7 $142) 42... Nb6 43. Rc6 {[%emt 0:00:30]} Bxc1 {[#]} (43... Ra4 $142) 44. Kxc1 $2 {[%emt 0:00:30]} (44. Rxc1 Nxd5 45. Rg6 Ra7 $11) (44. Rxb3 $1 $18 {and the rest is easy.} Bf4 45. Rbxb6 Rxb6 46. Rxb6) 44... Ra1+ $16 45. Kd2 {[%emt 0:00:30]} Nxd5 46. Rxb3 {[%emt 0:00:30]} ({White should try} 46. exd5 $16 Rxf5 47. Rxd6) 46... Nf6 (46... Rh1 $1 $14) 47. Nxd6 {[%emt 0:00:30]} (47. Rxd6 $2 {perishes.} Nxe4+ 48. Kc2 Rxf5 $19) 47... Rh1 {[#]} 48. Re3 $1 {[%emt 0:00:30]} Rg8 49. b3 {[%emt 0:00:30]} Ra8 (49... Rgg1 $16 {is a better defense.}) 50. Nf7+ {[%emt 0:00:30]} Kg8 $2 (50... Kg7) 51. Nxe5 $2 {[%emt 0:00:30]} (51. Rxf6 Kg7 52. Rf5) 51... Rd8+ 52. Kc2 {[%emt 0:00:30]} ({Don't take} 52. Kc3 $6 Rc1+ 53. Kb4 (53. Kb2 Rxc6 54. Nxc6 Rd6 $18) 53... Rf1 54. Rg3+ Kf8 $18) 52... h4 {Inhibits Rg3+.} (52... Rf1 53. b4 Re8) 53. Rc7 $2 {[%emt 0:00:30]} (53. Rxf6 $18 {is the precise move to win.} Re8 54. Nc4) 53... Kf8 $2 {[%mdl 8192]} (53... Rh2+ $16 54. Kc1 Re8) 54. Nd3 $2 {[%emt 0:00:30]} (54. Rf7+ $18 {and White stays clearly on top.} Ke8 55. Rxf6) 54... Rh2+ 55. Kc3 {[%emt 0:00:30] Threatens to win with Nc5.} Re8 $2 (55... Rg2 $16) 56. Kd4 {[%emt 0:00:30]} (56. Rf3 $142 Kg8 57. Rxf6 Rxh3 58. Rg6+ Kh8 59. Rh6+ Kg8 60. Rd7) 56... Rd8+ 57. Ke5 {[%emt 0:00:30]} Nd7+ 58. Ke6 {[%emt 0:00:30]} Nb8 $2 {[%mdl 32768] Weighted Error Value: White=0.59/Black=0.59. An unexpected result.} (58... Ke8 59. e5 Rg2) 1/2-1/2

[Event "ITT 1st Parada Jamundi 2022"]
[Site "Jamundi Valle"]
[Date "2022.12.10"]
[Round "8.7"]
[White "Argote Heredia, Valentina"]
[Black "Mora Munoz, Alejandro"]
[Result "1-0"]
[ECO "B76"]
[WhiteElo "2140"]
[BlackElo "1959"]
[Annotator "TA"]
[PlyCount "115"]
[EventDate "2022.12.05"]
[EventType "swiss"]
[EventCountry "COL"]
[SourceTitle "playchess.com"]
[Source "ChessBase"]
[SourceQuality "1"]
[TimeControl "5400+30"]

{[%evp 18,115,105,107,96,85,74,65,206,171,180,103,114,66,75,65,66,65,65,66,81,85,85,64,79,58,73,50,58,54,61,54,62,52,66,54,61,69,88,64,71,57,98,68,77,85,79,66,72,75,242,256,246,222,260,251,274,284,328,277,309,316,309,309,321,323,398,397,458,459,447,442,436,445,442,421,525,452,622,622,684,684,677,669,672,655,629,612,607,588,573,561,573,550,2121,2073,2210,2014,1352,1227]} 1. e4 c5 2. Nf3 d6 3. d4 cxd4 4. Nxd4 Nf6 5. Nc3 g6 6. Be3 Bg7 7. f3 {[%cal Bf2f3,Bf3f4][%mdl 32]} O-O 8. Qd2 d5 9. e5 Nfd7 10. f4 $1 {White has more active pieces.} (10. Nxd5 $6 Nxe5 11. Nc3 Nec6 $11) 10... Nc6 {B76: Sicilian Dragon: Yugoslav Attack, 9 g4 and 9 0-0-0.} 11. O-O-O (11. Nxd5 Ndxe5 $1 12. Nxc6 Nxc6 $15) 11... Nb6 12. Be2 e6 {[#]} (12... f6 $1 $14) 13. h4 $1 $18 f6 14. exf6 ({White should play} 14. Nxc6 $18 bxc6 15. h5) 14... Qxf6 $16 15. g3 {[#]} ({Better is} 15. Nxc6 $16 bxc6 16. h5) 15... Nxd4 $146 ({Predecessor:} 15... Bd7 16. Rhe1 e5 17. fxe5 Nxe5 18. Bg5 Qd6 19. Bf4 Rac8 20. Kb1 a6 21. Nf3 Nxf3 22. Bxf3 Bxc3 23. bxc3 {½-½ (29) Vrenegoor,T (2350)-Afek,Y (2360) Netherlands 2001}) 16. Bxd4 Qxd4 17. Qxd4 Bxd4 18. Rxd4 Bd7 19. Re1 Rfe8 20. Bf1 {Inhibits e5.} Rac8 21. Nd1 {[%cal Bc3d1,Bd1f2,Bf2g4,Bg4e5][%mdl 32]} Rc7 22. Nf2 Nc8 {[%cal Bb6c8,Bc8d6,Bd6e4][%mdl 32]} 23. Ng4 {Nf6+ is the strong threat.} Kg7 {Against Nf6} 24. Ne5 Nd6 25. Bh3 {aiming for Nxd7.} Bc8 26. Rd3 Ne4 27. Bg2 Nc5 28. Rd2 a5 29. Kb1 Rce7 30. c4 dxc4 {[%cal Oc5d3]} 31. Nxc4 {[%cal Oe1c1]} e5 {Hoping for ...Bf5+.} 32. Nd6 $36 {[%mdl 2048] White has some pressure.} ({Of course not} 32. Rxe5 $6 Bf5+ 33. Ka1 Nd3 34. Rxe7+ (34. Rxa5 $2 Re1+) 34... Rxe7 $15) 32... Bf5+ 33. Ka1 {White leaves nothing to chance now.} e4 $2 34. Nxe8+ $18 Rxe8 35. Re3 Kf7 36. Bf1 h5 37. b3 Rc8 38. Bc4+ Kf6 39. Rd6+ Ke7 40. Rd5 Kf6 41. Kb2 Nd3+ 42. Kc3 ({Weaker is} 42. Bxd3 exd3 43. Rd6+ (43. Rxa5 Rd8 $14) 43... Kf7 $18) 42... Nf2 43. Re2 {Against a4. White is clearly winning.} ({Less strong is} 43. Rxa5 Nd1+ 44. Kd4 Nxe3 45. Kxe3 Rc6 $18) 43... Ng4 44. Rxa5 e3 45. Rb5 Be4 46. Rb6+ Kg7 47. Kb4 Rd8 48. Re6 Bf3 49. R2xe3 Nxe3 50. Rxe3 {[%mdl 4096] Endgame KRB-KRB} Bc6 51. a4 Kf6 52. Re5 Rd1 53. Bb5 {And now Bxc6 would win.} Bg2 54. Re3 Rb1 55. Kc5 Rb2 56. Re2 Rxe2 57. Bxe2 Kf5 58. Kd4 {[%emt 0:52:39] Weighted Error Value: White=0.11 (very precise) /Black=0.31} 1-0

[Event "ITT 1st Parada Jamundi 2022"]
[Site "Jamundi Valle"]
[Date "2022.12.10"]
[Round "8.8"]
[White "Paredes Lagos, Anthony Javier"]
[Black "Malka, Samuel"]
[Result "1-0"]
[ECO "E05"]
[WhiteElo "2230"]
[BlackElo "2265"]
[Annotator "TA"]
[PlyCount "71"]
[EventDate "2022.12.05"]
[EventType "swiss"]
[EventCountry "COL"]
[SourceTitle "playchess.com"]
[Source "ChessBase"]
[SourceQuality "1"]
[TimeControl "5400+30"]

{[%evp 13,71,20,0,0,24,-16,-10,-11,-23,-95,43,21,173,106,148,138,150,34,69,5,161,-29,-51,-32,0,0,0,0,0,-72,74,76,151,147,242,254,319,285,274,250,232,237,393,241,651,623,1064,1042,1108,1104,1103,1079,1213,1007,1602,1547,1495,1218,4710,1980]} 1. d4 {[%emt 0:21:47]} d5 2. c4 {[%emt 0:00:30]} e6 {[%emt 0:01:13]} 3. g3 {[%emt 0:00:30]} Nf6 {[%emt 0:00:30]} 4. Bg2 {[%emt 0:00:30]} Be7 {[%emt 0:00:30]} 5. Nf3 {[%emt 0:00:30]} O-O {[%emt 0:00:30]} 6. O-O {[%emt 0:00:30]} dxc4 {[%emt 0:00:30]} 7. Qc2 {[%emt 0:00:30]} b5 {[%emt 0:00:30]} 8. a4 {[%emt 0:00:30] E05: Open Catalan: 5 Nf3 Be7.} b4 {[%emt 0:00:30] 8...Bb7 gains popularity.} 9. Qxc4 {[%emt 0:00:30]} Ba6 {[%emt 0:00:30]} 10. Qc2 {[%emt 0:00:30] The position is equal.} Nbd7 {[%emt 0:00:30]} 11. Rd1 {[%emt 0:00:30]} (11. Ne5 $11 {remains equal.}) 11... Nd5 {[%emt 0:00:30]} (11... c5 $17 12. Ne5 Rc8) 12. e4 {[%emt 0:00:30] [#]} N5b6 $146 {[%emt 0:00:30]} (12... N5f6 $11 {and Black stays safe.}) ({Predecessor:} 12... N5f6 13. Nbd2 c5 14. e5 Nd5 15. Ne4 cxd4 16. Rxd4 Rc8 17. Qb1 Qc7 18. Nfg5 g6 {1-0 (34) Rosenberg,E (2035)-Ouellet,M (2179) Chess.com INT 2022}) 13. b3 {[%emt 0:00:30]} (13. a5 $18) 13... c5 {[%emt 0:00:30]} 14. a5 {[%emt 0:00:30]} Nc8 {[%emt 0:00:30]} 15. dxc5 {[%emt 0:00:30]} ({White should play} 15. e5 $16) 15... Bxc5 $14 {[%emt 0:00:30]} 16. e5 {[%emt 0:00:30] Against Nd6. White is more active.} (16. Bf1 $14 Bxf1 17. Kxf1) 16... h6 $2 {[%emt 0:00:30]} (16... Ne7 $1 $11) 17. Nd4 $2 {[%emt 0:00:30] [#]} (17. Ne1 $18 Rb8 18. Bc6) 17... Ne7 $1 $11 {[%emt 0:00:30]} 18. Nc6 $1 {[%emt 0:00:30]} Qe8 {[%emt 0:00:30] And now ...Rc8 would win.} (18... Nxc6 $5 19. Bxc6 Qc7 20. Bxa8 (20. Bxd7 Rfd8 $17) 20... Rxa8 $11) 19. Nxe7+ {[%emt 0:00:30]} Qxe7 {[%emt 0:00:30]} 20. Bxa8 {[%emt 0:00:30]} Rxa8 {[%emt 0:00:30]} 21. Qe4 {[%emt 0:00:30] [#]} ({Not} 21. Rxd7 $2 Qxd7 22. Nd2 Qd4 $19) (21. Bb2 $11) 21... Rc8 {[%emt 0:00:30]} (21... Rd8 $1 $17 {[%cal Od7e5] aiming for ...Nxe5!} 22. Rd2 Nf8) 22. Be3 $16 {[%emt 0:00:30]} Bxe3 {[%emt 0:00:30]} (22... Bb5 $142) 23. Qxe3 {[%emt 0:00:30]} Nc5 {[%emt 0:00:30]} (23... Rc5 $16) 24. Nd2 $18 {[%emt 0:00:30]} Qg5 {[%emt 0:00:30]} 25. Qxg5 {[%emt 0:00:30]} hxg5 {[%emt 0:00:30]} 26. Rac1 {[%emt 0:00:30][%cal Od2e4] Hoping for Ne4!} Kh7 {[%emt 0:00:30]} 27. f3 {[%emt 0:00:30]} g4 $2 {[%emt 0:00:30]} (27... Bb7 28. Rc2 Kg6) 28. Ne4 {[%emt 0:00:30]} Be2 $2 {[%emt 0:00:30]} (28... Nxb3 29. Rxc8 Bxc8) 29. Re1 {[%emt 0:00:30] White is clearly winning.} ({Weaker is} 29. Rxc5 Rxc5 30. Nxc5 Bxd1 $11) ({Stronger than} 29. Nxc5 Bxd1 30. fxg4 Bxg4 $11) 29... Nxe4 {[%emt 0:00:30]} 30. fxe4 {[%emt 0:00:30]} Rxc1 {[%emt 0:00:30]} 31. Rxc1 {[%emt 0:00:30] KR-KB} Bd3 {[%emt 0:00:30]} 32. Kf2 {[%emt 0:00:30]} Bxe4 {[%emt 0:00:30]} 33. Rc4 {[%emt 0:00:30]} Bd5 {[%emt 0:00:30]} 34. Rxb4 {[%emt 0:00:30]} Kg6 {[%emt 0:00:30]} 35. Rxg4+ {[%emt 0:00:30]} Kf5 {[%emt 0:00:30]} 36. Rxg7 {[%emt 0:00:30] Weighted Error Value: White=0.46/Black=0.93} 1-0

[Event "ITT 1st Parada Jamundi 2022"]
[Site "Jamundi Valle"]
[Date "2022.12.09"]
[Round "8.9"]
[White "Lopez Rayo, Santiago"]
[Black "Mateus, Alejandro"]
[Result "1/2-1/2"]
[ECO "B99"]
[WhiteElo "2300"]
[BlackElo "2308"]
[Annotator "TA"]
[PlyCount "35"]
[EventDate "2022.12.05"]
[EventType "swiss"]
[EventCountry "COL"]
[SourceTitle "playchess.com"]
[Source "ChessBase"]
[SourceQuality "1"]
[TimeControl "5400+30"]

{[%evp 21,35,22,50,49,49,48,57,50,50,54,94,-90,0,-126,-136,-194]} 1. e4 {[%emt 0:03:44]} c5 {[%emt 0:00:42]} 2. Nf3 {[%emt 0:00:24]} d6 {[%emt 0:00:09]} 3. d4 {[%emt 0:00:28]} cxd4 {[%emt 0:00:03]} 4. Nxd4 {[%emt 0:00:05]} Nf6 {[%emt 0:00:04]} 5. Nc3 {[%emt 0:00:05]} a6 {[%emt 0:00:04]} 6. Bg5 {[%emt 0:00:07]} e6 {[%emt 0:00:47]} 7. f4 {[%emt 0:00:20]} Be7 {[%emt 0:00:11]} 8. Qf3 {[%emt 0:00:07]} h6 {[%emt 0:00:07]} 9. Bh4 {[%emt 0:00:04]} Nbd7 {[%emt 0:00:13]} 10. O-O-O {[%emt 0:00:12]} Qc7 {[%emt 0:00:07]} 11. Be2 {[%emt 0:00:41] 11.Be2 scores better than 11.Bd3.} b5 {[%emt 0:01:30]} (11... Nxe4 $2 12. Nxe4 (12. Nxe6 fxe6 13. Bxe7 Kxe7 $18) 12... Bxh4 13. Nxe6 $1 {[%mdl 512]} fxe6 14. Qh5+ (14. Nxd6+ Ke7 $18) 14... Kf8 15. Nxd6 $18 (15. Qxh4 d5 $16)) 12. Bxf6 $1 {B99: Sicilian Najdorf: 6 Bg5 e6 7 f4 Be7 8 Qf3 Qc7 9 0-0-0 Nbd7.} Nxf6 {[%emt 0:00:10]} (12... Bxf6 $2 13. e5 dxe5 14. Ndxb5 (14. Qxa8 exd4 15. Ne4 O-O $15) 14... axb5 15. Qxa8 $18) 13. e5 $1 {[%emt 0:00:50] Prevents b4.} Bb7 {[%emt 0:00:23]} 14. Qg3 {[%emt 0:00:52] Hoping for Ncxb5. White is slightly better.} dxe5 {[%emt 0:00:58]} 15. fxe5 {[%emt 0:00:28] Threatens to win with Ndxb5.} (15. Qxg7 $2 Rg8 16. Nxe6 (16. Ncxb5 $2 Qb6 $19) 16... Qb6 17. Qxh6 Qxe6 18. fxe5 Rxg2 $19) 15... Nd7 {[#] has lost popularity (15...Nd5).} 16. Bf3 $2 ({Of course not} 16. Qxg7 Qxe5 17. Qxe5 Nxe5 $15) (16. Nxe6 $1 $16 fxe6 17. Qg6+ (17. Qxg7 $2 {is the wrong capture.} Bg5+ 18. Kb1 O-O-O $19) 17... Kd8 18. Qxg7) 16... Bxf3 (16... Nxe5 $2 17. Bxb7 (17. Qxg7 O-O-O $11) 17... Bg5+ 18. Kb1 Qxb7 19. Qxe5 $18) ({Better is} 16... O-O $17) 17. Nxf3 (17. gxf3 $11 b4 18. Qxg7 Qxe5 19. Qxe5 Nxe5 20. Ne4) 17... O-O $17 {[#]} 18. Nd4 $146 {[%emt 0:04:48] Weighted Error Value: White=0.58/Black=0.42} (18. Ne4 $17) ({Predecessor:} 18. Rhe1 Nc5 {½-½ (18) Lopez Rayo,S (2306)-Mateus Urbano,L (2300) Jamundi 2022}) 1/2-1/2